bitfinex-derivatives/quotes_ETHF0:USTF0_20210702
["timestamp","ask_amount","ask_price","bid_price","bid_amount"]
[1625262370639,2.20527,2110.7,2109.7,2.20527]
[1625262371491,2.20527,2110.3,2110.0,2.20527]
[1625262373568,4.41054,2110.3,2110.0,2.20527]
[1625262374523,2.20527,2110.3,2110.0,2.20527]
[1625262375323,2.20527,2110.3,2109.7,2.20527]
[1625262377478,4.41054,2110.3,2109.7,2.20527]
[1625262379532,6.75324,2110.3,2109.7,2.20527]
[1625262380235,6.75324,2110.3,2109.0,1.36377983]
[1625262380337,6.75324,2110.3,2108.9,1.36412902]
[1625262380637,6.75324,2110.3,2108.5,4.91220083]
[1625262380736,7.75324,2110.3,2108.5,1.36559474]
[1625262381545,2.20527,2109.3,2109.2,2.20527]
[1625262381648,4.82447,2109.3,2109.2,2.20527]
[1625262383550,7.02974,2109.3,2109.2,2.20527]
[1625262392874,7.02974,2109.3,2109.2,5.40557]
[1625262393825,2.6192,2109.3,2109.2,5.40557]
[1625262393924,1.0,2110.4,2109.2,5.40557]
[1625262395281,2.39584516,2110.4,2109.2,5.40557]
[1625262395630,2.20527,2109.6,2109.5,2.20527]
[1625262396231,2.20527,2109.6,2109.2,2.20527]
[1625262397286,2.20527,2109.6,2109.2,7.20527]
[1625262397587,2.20527,2109.6,2109.5,2.20527]
[1625262397687,2.20527,2109.6,2109.5,10.25327]
[1625262397887,2.20527,2109.6,2109.5,27.39429]
[1625262398500,1.0,2110.7,2109.5,27.39429]
[1625262399606,2.20527,2110.6,2110.5,2.20527]
[1625262401608,4.41054,2110.6,2110.5,2.20527]
[1625262406471,4.41054,2110.6,2110.3,2.20527]
[1625262406573,7.90274,2110.6,2109.1,1.36091325]
[1625262406672,1.0,2110.5,2109.1,1.36091325]
[1625262407625,1.0,2110.5,2109.4,2.20527]
[1625262407727,2.20527,2109.5,2109.4,2.20527]
[1625262412486,2.20527,2109.7,2109.4,2.20527]
[1625262413138,1.0,2110.3,2109.4,2.20527]
[1625262413238,3.4922,2110.6,2109.4,2.20527]
[1625262413390,2.39727055,2110.6,2109.4,2.20527]
[1625262413639,1.0,2110.6,2109.4,2.20527]
[1625262413792,2.20527,2110.4,2109.9,2.20527]
[1625262413990,2.20527,2110.4,2109.4,2.20527]
[1625262415711,2.20527,2110.4,2109.7,2.20527]
[1625262416511,2.20527,2110.4,2109.7,7.20527]
[1625262417015,2.20527,2110.4,2109.8,17.282217]
[1625262417115,1.39719613,2110.6,2109.9,5.0]
[1625262417319,6.98595641,2111.7,2109.9,5.0]
[1625262417417,6.98595641,2111.7,2110.0,17.329251]
[1625262417565,6.98595641,2111.7,2110.1,13.0]
[1625262417768,5.58874377,2111.5,2111.4,7.82814]
[1625262417872,1.39665431,2111.6,2111.4,7.82814]
[1625262418018,1.39665431,2111.6,2111.4,25.159189]
[1625262418370,2.20527,2111.8,2111.4,25.159189]
[1625262419774,2.20527,2111.8,2111.7,2.20527]
[1625262423883,2.20527,2111.8,2111.4,2.20527]
[1625262423984,5.96287,2111.8,2110.3,1.35518633]
[1625262424083,1.0,2111.7,2110.3,1.35518633]
[1625262424185,1.0,2111.7,2110.0,1.35581261]
[1625262424486,1.39512906,2111.6,2109.8,1.35659694]
[1625262424587,1.0,2111.5,2110.1,17.113864]
[1625262424887,1.0,2111.5,2110.2,5.0]
[1625262424990,1.0,2111.5,2110.0,17.341622]
[1625262424991,2.39516171,2111.5,2110.0,17.341622]
[1625262425086,2.39516171,2111.5,2109.7,1.35694084]
[1625262425186,2.39516171,2111.5,2110.2,17.177736]
[1625262425437,1.39527829,2111.4,2109.6,1.35746489]
[1625262425536,3.4063,2111.3,2109.6,1.35746489]
[1625262425739,4.80164421,2111.3,2109.5,1.35800607]
[1625262425887,2.20527,2110.9,2110.8,2.20527]
[1625262427640,2.20527,2110.9,2110.6,2.20527]
[1625262427892,2.20527,2110.8,2110.6,2.20527]
[1625262428394,4.69417,2110.8,2110.6,2.20527]
[1625262428494,4.69417,2110.8,2110.2,2.20527]
[1625262429798,2.20527,2110.3,2110.2,2.20527]
[1625262432863,2.20527,2110.3,2110.2,7.20527]
[1625262433063,1.0,2111.1,2110.2,7.20527]
[1625262433163,1.0,2111.1,2110.2,9.94717]
[1625262433267,1.39575975,2111.3,2110.2,9.94717]
[1625262433368,1.39566393,2111.4,2110.2,27.039795]
[1625262433671,1.3954872,2111.7,2110.2,27.039795]
[1625262433920,2.20527,2111.6,2111.5,5.16357]
[1625262434873,2.20527,2111.6,2111.5,2.9583]
[1625262439476,2.20527,2111.6,2111.2,2.20527]
[1625262441884,4.41054,2111.6,2111.5,2.20527]
[1625262442484,4.41054,2111.6,2111.2,2.20527]
[1625262443989,2.20527,2111.6,2111.5,2.20527]
[1625262444095,2.20527,2111.6,2111.5,4.79827]
[1625262444541,2.20527,2111.6,2111.5,2.593]
[1625262449404,2.20527,2111.6,2111.2,2.20527]
[1625262450014,2.20527,2111.3,2111.2,2.20527]
[1625262451067,5.87627,2111.3,2109.8,1.0]
[1625262451167,1.0,2111.2,2109.7,6.35512028]
[1625262451472,1.0,2111.2,2109.7,5.0]
[1625262451672,1.0,2111.2,2109.8,17.330219]
[1625262452074,2.20527,2110.6,2110.4,2.20527]
[1625262452475,2.20527,2110.6,2110.2,2.20527]
[1625262452625,2.20527,2110.6,2109.2,5.0]
[1625262452725,1.0,2110.5,2109.2,5.0]
[1625262453275,1.0,2110.5,2109.3,17.320847]
[1625262453727,2.20527,2110.6,2109.3,17.320847]
[1625262453876,3.20527,2110.6,2109.3,17.320847]
[1625262453977,3.20527,2110.6,2109.0,17.126335]
[1625262454128,2.20527,2110.0,2109.6,2.20527]
[1625262465910,2.20527,2110.0,2109.6,7.20527]
[1625262466013,2.20527,2110.6,2109.7,17.21762]
[1625262466113,2.20527,2110.6,2109.9,2.20527]
[1625262466214,2.20527,2110.6,2109.9,5.43497]
[1625262466314,3.59963533,2111.0,2109.9,5.43497]
[1625262466418,3.59963533,2111.0,2110.0,17.272782]
[1625262466513,2.20527,2111.0,2110.0,17.272782]
[1625262466671,2.20527,2111.0,2110.0,22.272782]
[1625262467522,2.20527,2111.0,2110.0,17.272782]
[1625262468078,2.20527,2111.0,2110.9,2.20527]
[1625262469332,2.20527,2111.0,2109.9,3.2297]
[1625262469429,3.20527,2111.0,2109.9,3.2297]
[1625262469533,6.55257,2111.0,2109.9,3.2297]
[1625262469631,6.55257,2111.0,2109.2,1.35673268]
[1625262469731,11.31157,2111.0,2109.2,1.35673268]
[1625262470137,2.20527,2110.3,2109.9,2.20527]
[1625262472089,2.20527,2110.0,2109.9,2.20527]
[1625262500423,2.20527,2110.3,2109.9,2.20527]
[1625262500571,1.39608184,2110.9,2109.9,5.85177]
[1625262500673,1.39608184,2110.9,2110.0,5.0]
[1625262500783,1.39627531,2111.0,2110.0,5.0]
[1625262501025,1.39627531,2111.0,2110.0,22.342288]
[1625262501224,1.39609995,2111.3,2110.0,22.342288]
[1625262501322,1.39609995,2111.3,2110.0,17.342288]
[1625262501676,1.0,2111.2,2110.0,17.342288]
[1625262501774,1.39623761,2111.4,2110.0,17.342288]
[1625262502329,2.20527,2111.2,2110.6,2.20527]
[1625262502528,2.20527,2111.2,2110.6,5.04677]
[1625262504342,2.20527,2110.7,2110.6,5.04677]
[1625262504442,2.20527,2110.7,2110.6,2.8415]
[1625262504547,2.20527,2110.7,2109.8,1.35728276]
[1625262504742,2.20527,2110.7,2109.4,1.35902461]
[1625262504847,3.20527,2110.7,2109.4,1.35902461]
[1625262505044,3.20527,2110.7,2109.2,1.35957598]
[1625262505794,1.39684411,2110.5,2108.9,1.36089674]
[1625262505896,1.0,2110.4,2108.9,1.36089674]
[1625262506195,1.0,2110.4,2108.8,1.3610275]
[1625262506396,2.20527,2109.6,2109.5,2.20527]
[1625262506495,4.77967,2109.6,2109.5,2.20527]
[1625262507852,4.77967,2109.6,2108.7,1.36139031]
[1625262508301,4.77967,2109.6,2108.2,1.36346274]
[1625262508401,4.41054,2108.3,2108.2,1.36346274]
[1625262508550,4.41054,2108.3,2108.1,4.11411784]
[1625262508551,7.96864,2108.3,2108.1,2.20527]
[1625262508803,7.96864,2108.3,2108.0,1.36350113]
[1625262508954,7.96864,2108.3,2107.9,3.56892061]
[1625262509905,7.96864,2108.3,2107.9,1.36365061]
[1625262510157,7.96864,2108.3,2107.7,1.36498551]
[1625262510353,4.41054,2107.8,2107.7,1.36498551]
[1625262510555,4.41054,2107.8,2107.6,3.57047115]
[1625262510854,4.41054,2107.8,2107.6,2.20527]
[1625262520996,1.0,2109.5,2107.6,2.20527]
[1625262521146,1.0,2109.5,2107.7,17.262372]
[1625262521446,1.0,2109.5,2107.7,22.262372]
[1625262521896,14.4119,2109.8,2107.7,22.262372]
[1625262522000,15.4119,2109.8,2107.8,1.35944623]
[1625262522297,15.4119,2109.8,2107.9,17.252149]
[1625262522398,15.4119,2109.8,2108.0,5.0]
[1625262522501,2.20527,2109.0,2108.8,2.20527]
[1625262522598,2.20527,2109.0,2108.8,5.72007]
[1625262524810,2.20527,2109.0,2108.8,3.5148]
[1625262524907,2.20527,2109.0,2108.1,1.35807348]
[1625262525007,2.20527,2109.0,2107.9,1.35907945]
[1625262525109,3.20527,2109.0,2107.9,1.35907945]
[1625262525513,3.20527,2109.0,2107.7,1.35985654]
[1625262526161,3.20527,2109.0,2107.8,17.217951]
[1625262526461,2.20527,2108.3,2108.1,2.20527]
[1625262529065,2.20527,2108.5,2108.1,2.20527]
[1625262529167,2.20527,2108.5,2108.2,17.350164]
[1625262532622,2.20527,2108.5,2108.1,4.55247]
[1625262537409,14.4119,2109.8,2108.2,5.0]
[1625262537507,1.0,2109.6,2108.1,4.55247]
[1625262537659,1.0,2109.6,2108.2,17.330971]
[1625262538558,2.20527,2109.1,2108.5,2.20527]
[1625262540615,4.41054,2108.6,2108.5,2.20527]
[1625262541667,4.41054,2108.6,2108.1,2.20527]
[1625262541767,8.18914,2108.6,2107.9,1.36114144]
[1625262542371,8.18914,2108.6,2107.8,1.36166079]
[1625262542676,4.41054,2107.9,2107.7,1.36186054]
[1625262543073,4.41054,2107.9,2107.5,1.36282144]
[1625262543570,4.41054,2107.9,2107.4,3.56797968]
[1625262544524,4.41054,2107.9,2107.5,1.36258068]
[1625262544623,2.20527,2107.6,2107.5,1.36258068]
[1625262546431,2.20527,2107.6,2107.4,3.5676797]
[1625262546679,1.0,2108.5,2107.4,3.5676797]
[1625262547330,1.0,2108.5,2107.5,1.36210768]
[1625262547483,1.0,2108.8,2107.5,1.36210768]
[1625262547586,1.0,2108.8,2107.6,1.36146665]
[1625262547688,1.0,2108.8,2107.6,4.89076665]
[1625262547789,1.0,2108.8,2107.6,9.89076665]
[1625262547889,1.0,2108.8,2107.6,27.23269465]
[1625262547992,1.0,2108.8,2107.7,1.36093797]
[1625262548343,1.0,2108.8,2107.8,18.52967813]
[1625262548443,14.4119,2109.8,2107.8,18.52967813]
[1625262548543,4.7944,2109.7,2107.8,18.52967813]
[1625262548643,2.20527,2108.5,2108.3,2.20527]
[1625262549396,5.54717,2108.5,2108.3,2.20527]
[1625262550698,2.20527,2108.4,2108.3,2.20527]
[1625262550799,2.20527,2108.4,2107.5,1.3616053]
[1625262551951,2.20527,2108.4,2107.3,1.36231206]
[1625262552050,3.20527,2108.4,2107.3,1.36231206]
[1625262552554,3.20527,2108.4,2107.4,1.36214712]
[1625262552656,2.20527,2107.7,2107.6,2.20527]
[1625262553960,3.428,2107.8,2107.6,2.20527]
[1625262554710,2.20527,2107.7,2107.6,2.20527]
[1625262559827,2.20527,2107.8,2107.6,7.20527]
[1625262559974,1.39412175,2109.7,2107.6,18.19867]
[1625262560129,1.0,2109.3,2107.6,19.55582616]
[1625262560226,1.0,2109.3,2107.7,17.227691]
[1625262560325,14.4119,2109.8,2107.8,5.0]
[1625262560526,14.4119,2109.8,2107.8,6.3563393]
[1625262560676,14.4119,2109.8,2108.0,5.0]
[1625262560777,2.20527,2109.3,2108.8,2.20527]
[1625262563684,2.20527,2109.5,2108.8,2.20527]
[1625262564747,2.20527,2109.5,2109.4,4.41054]
[1625262564900,2.20527,2109.5,2109.4,7.81554]
[1625262565246,2.20527,2109.9,2109.4,7.81554]
[1625262566754,2.20527,2109.9,2109.8,2.20527]
[1625262567154,2.20527,2110.3,2109.8,2.20527]
[1625262567754,2.20527,2110.3,2109.4,2.20527]
[1625262567861,2.20527,2110.3,2108.6,1.35328994]
[1625262567963,1.0,2110.2,2108.6,1.35328994]
[1625262568111,1.0,2110.2,2108.5,1.35357712]
[1625262568313,1.0,2110.2,2108.3,2.70715425]
[1625262568314,1.0,2110.2,2108.2,1.35469793]
[1625262568663,1.0,2110.2,2108.1,6.11424298]
[1625262568762,2.20527,2109.6,2109.0,2.20527]
[1625262570066,2.20527,2109.6,2107.9,1.35623534]
[1625262570167,1.0,2109.5,2107.9,1.35623534]
[1625262570469,1.0,2109.5,2107.7,1.89938501]
[1625262570470,1.0,2109.5,2107.8,1.35670358]
[1625262570767,2.20527,2108.6,2108.4,2.20527]
[1625262574127,2.20527,2108.8,2108.4,2.20527]
[1625262576783,2.20527,2108.5,2108.4,2.20527]
[1625262580539,2.20527,2108.8,2108.4,2.20527]
[1625262580637,2.20527,2108.8,2108.4,5.59557]
[1625262582889,2.20527,2108.5,2108.4,5.59557]
[1625262583488,2.20527,2108.5,2108.4,3.3903]
[1625262586707,2.20527,2108.5,2108.2,2.20527]
[1625262586956,4.41054,2108.5,2108.2,2.20527]
[1625262591769,2.39738695,2109.4,2108.2,2.20527]
[1625262592920,2.20527,2108.4,2108.2,2.20527]
[1625262603367,2.20527,2108.6,2108.2,2.20527]
[1625262612839,2.20527,2108.6,2108.2,7.20527]
[1625262613044,2.20527,2108.6,2108.5,2.20527]
[1625262613139,2.20527,2108.6,2108.5,5.67547]
[1625262613489,2.20527,2108.8,2108.5,5.67547]
[1625262613490,1.40053484,2109.3,2108.5,5.67547]
[1625262613742,2.40043183,2109.5,2108.5,7.03895461]
[1625262613842,1.40043183,2109.5,2108.5,7.03895461]
[1625262614193,1.40043183,2109.5,2108.6,17.14298]
[1625262614695,1.40043183,2109.5,2108.6,18.50635559]
[1625262615096,1.40043183,2109.5,2108.9,2.20527]
[1625262615516,1.40047241,2109.6,2108.9,2.20527]
[1625262616314,1.40051432,2109.5,2108.9,2.20527]
[1625262617014,2.20527,2109.4,2108.9,2.20527]
[1625262618669,3.60579097,2109.4,2108.9,2.20527]
[1625262618868,6.61419097,2109.4,2108.9,2.20527]
[1625262619072,2.20527,2109.0,2108.9,2.20527]
[1625262623481,2.20527,2109.4,2108.9,2.20527]
[1625262627086,2.20527,2109.4,2109.2,2.20527]
[1625262633107,5.52267,2109.4,2108.6,1.36225252]
[1625262633208,6.84044,2108.7,2108.6,1.36225252]
[1625262633815,6.84044,2108.7,2108.2,2.20527]
[1625262633916,6.84044,2108.7,2108.5,1.36233354]
[1625262634518,6.84044,2108.7,2108.2,2.20527]
[1625262634717,6.84044,2108.7,2106.8,10.89866829]
[1625262635165,4.41054,2107.8,2107.7,7.65541638]
[1625262635265,7.24494,2107.8,2107.7,7.65541638]
[1625262635669,7.24494,2107.8,2107.7,2.20527]
[1625262639233,2.8344,2107.8,2107.7,2.20527]
[1625262639334,1.0,2108.9,2107.7,2.20527]
[1625262639434,3.63954401,2109.2,2107.7,2.20527]
[1625262639786,7.79683878,2109.4,2107.8,17.197431]
[1625262639787,3.6391895,2109.4,2107.8,17.197431]
[1625262639885,3.6391895,2109.4,2107.8,20.178131]
[1625262640035,3.6391895,2109.4,2107.8,25.178131]
[1625262640536,1.0,2109.3,2107.8,25.178131]
[1625262640635,10.35775307,2109.9,2107.8,25.178131]
[1625262641186,2.20527,2108.9,2108.8,2.20527]
[1625262643252,4.41054,2108.9,2108.8,2.20527]
[1625262646971,4.41054,2108.9,2107.8,3.54737008]
[1625262647070,4.41054,2108.9,2107.3,8.3011]
[1625262647071,5.41054,2108.9,2107.7,3.54864673]
[1625262647271,2.20527,2108.3,2108.2,2.20527]
[1625262648821,2.20527,2108.3,2108.0,2.20527]
[1625262649672,2.20527,2108.3,2107.6,2.20527]
[1625262653278,2.20527,2108.3,2108.2,4.41054]
[1625262653979,2.20527,2108.3,2107.6,2.8644]
[1625262654582,2.20527,2108.3,2107.7,17.307774]
[1625262654882,2.20527,2108.3,2107.5,17.179585]
[1625262655333,2.20527,2108.3,2107.9,2.20527]
[1625262659346,2.20527,2108.3,2108.2,2.20527]
[1625262659547,2.20527,2108.3,2107.9,2.20527]
[1625262659649,4.90847,2108.3,2107.9,2.20527]
[1625262665432,2.20527,2108.0,2107.9,2.20527]
[1625262672494,4.81417,2108.0,2107.9,2.20527]
[1625262677171,2.20527,2108.0,2107.9,2.20527]
[1625262677271,2.20527,2108.3,2107.9,2.20527]
[1625262677423,2.20527,2108.3,2107.9,5.94207]
[1625262677632,2.20527,2108.3,2108.2,2.20527]
[1625262677780,2.20527,2108.7,2108.2,2.20527]
[1625262678640,2.20527,2108.7,2108.3,17.218704]
[1625262679642,2.20527,2108.7,2108.6,2.20527]
[1625262680339,2.20527,2108.7,2108.6,19.499682]
[1625262680938,2.20527,2108.7,2108.6,2.20527]
[1625262682241,2.20527,2108.7,2108.2,2.20527]
[1625262682446,4.78947,2108.7,2108.2,2.20527]
[1625262682644,4.78947,2108.7,2107.2,3.53486529]
[1625262682744,1.0,2108.6,2107.2,3.53486529]
[1625262682946,1.0,2108.6,2107.1,3.53628637]
[1625262683647,2.20527,2108.2,2107.7,2.20527]
[1625262683750,5.46147,2108.2,2107.7,2.20527]
[1625262685654,7.66674,2108.2,2108.1,2.20527]
[1625262686655,3.2562,2108.2,2108.1,2.20527]
[1625262687857,2.20527,2108.7,2108.1,2.20527]
[1625262689762,2.20527,2108.7,2108.6,4.41054]
[1625262689862,2.20527,2108.7,2108.6,2.20527]
[1625262690672,2.20527,2108.7,2107.3,3.53454952]
[1625262690822,1.0,2108.6,2107.2,3.53594627]
[1625262691280,1.0,2108.6,2107.3,17.314212]
[1625262691382,1.0,2108.6,2107.3,20.84957176]
[1625262691681,1.0,2108.6,2107.3,3.53535976]
[1625262691782,2.20527,2108.4,2107.8,2.20527]
[1625262692282,3.20527,2108.7,2107.8,2.20527]
[1625262692383,2.20527,2108.7,2107.8,2.20527]
[1625262693785,4.41054,2108.7,2107.8,2.20527]
[1625262695746,2.20527,2108.3,2107.8,2.20527]
[1625262695895,5.92407,2108.3,2107.8,2.20527]
[1625262709811,2.20527,2107.9,2107.8,2.20527]
[1625262710714,2.20527,2108.3,2107.8,2.20527]
[1625262717943,2.20527,2108.3,2108.1,2.20527]
[1625262722004,2.20527,2108.3,2107.8,2.20527]
[1625262723558,2.20527,2108.4,2107.8,2.20527]
[1625262724060,2.20527,2108.4,2108.3,4.41054]
[1625262724961,3.64129132,2109.6,2108.3,4.41054]
[1625262725062,3.64129132,2109.6,2108.3,9.41054]
[1625262725167,3.64129132,2109.6,2108.3,34.643784]
[1625262725267,2.44629132,2109.6,2108.3,34.643784]
[1625262726015,16.1384,2110.3,2109.5,4.41054]
[1625262726118,15.1384,2110.3,2109.5,4.41054]
[1625262726269,1.40466693,2110.2,2109.5,4.41054]
[1625262727018,15.1384,2110.3,2109.5,4.41054]
[1625262728072,15.1384,2110.3,2109.9,2.20527]
[1625262728325,2.20527,2110.5,2109.9,2.20527]
[1625262728574,2.20527,2110.5,2109.5,2.20527]
[1625262728674,5.55817,2110.5,2109.5,2.20527]
[1625262728775,10.55817,2110.5,2109.5,2.20527]
[1625262728876,7.02412812,2110.4,2108.4,1.0]
[1625262729027,13.02412812,2110.4,2108.2,15.2512]
[1625262729124,13.02412812,2110.4,2108.0,4.33062427]
[1625262729478,13.02412812,2110.4,2107.8,4.33344454]
[1625262729580,12.6458611,2110.3,2107.8,4.33344454]
[1625262729682,10.759,2110.2,2107.8,4.33344454]
[1625262730030,5.40877,2109.0,2107.8,4.33344454]
[1625262730178,6.40877,2109.0,2107.4,4.33801958]
[1625262730628,6.40877,2109.0,2107.0,4.34382635]
[1625262731192,6.40877,2109.0,2107.1,17.079516]
[1625262731984,2.20527,2108.0,2107.5,2.20527]
[1625262733219,2.20527,2108.0,2107.6,17.24118]
[1625262733317,2.20527,2108.3,2107.6,17.24118]
[1625262734019,2.20527,2108.3,2108.2,4.41054]
[1625262734121,1.0,2109.5,2108.2,4.41054]
[1625262734371,4.759,2109.6,2108.2,4.41054]
[1625262734469,1.40531868,2109.4,2108.2,4.41054]
[1625262734775,1.4053206,2109.5,2108.2,4.41054]
[1625262736024,2.20527,2108.9,2108.2,4.41054]
[1625262736477,2.20527,2108.9,2107.3,6.80620545]
[1625262736579,3.20527,2108.9,2107.3,4.34000545]
[1625262737077,3.20527,2108.9,2107.4,17.134375]
[1625262737376,3.20527,2108.9,2107.3,17.181135]
[1625262738032,3.20527,2108.9,2107.9,2.20527]
[1625262738126,2.20527,2108.9,2107.9,2.20527]
[1625262742084,2.20527,2108.5,2107.9,2.20527]
[1625262742184,4.82737,2108.5,2107.9,2.20527]
[1625262743036,4.82737,2108.5,2107.2,4.34176865]
[1625262743538,9.82737,2108.5,2107.2,4.34176865]
[1625262743789,9.82737,2108.5,2106.6,4.35008772]
[1625262743888,10.82737,2108.5,2106.6,4.35008772]
[1625262744039,2.20527,2107.2,2107.0,2.20527]
[1625262744137,4.55897,2107.2,2107.0,2.20527]
[1625262748559,2.3537,2107.2,2107.0,2.20527]
[1625262748659,3.6221,2108.5,2107.0,2.20527]
[1625262748909,3.6221,2108.5,2107.1,17.092659]
[1625262749062,2.4296,2109.0,2107.1,17.092659]
[1625262749160,1.0,2108.9,2107.1,17.092659]
[1625262749360,2.40564913,2108.9,2107.1,17.092659]
[1625262749717,1.40565306,2108.8,2107.1,17.092659]
[1625262749818,1.0,2108.7,2107.1,17.092659]
[1625262750069,2.20527,2107.7,2107.1,17.092659]
[1625262752524,2.20527,2107.7,2107.0,2.20527]
[1625262754882,2.20527,2107.7,2107.1,2.71771023]
[1625262755986,2.20527,2107.7,2107.0,4.92325275]
[1625262756436,2.20527,2107.7,2107.0,2.20527]
[1625262757937,2.20527,2107.7,2107.0,4.92359726]
[1625262758138,2.20527,2107.7,2107.6,2.20527]
[1625262758238,2.20527,2107.7,2107.6,4.61137]
[1625262758491,2.20527,2107.7,2107.6,2.4061]
[1625262761845,2.20527,2107.7,2107.1,6.12378777]
[1625262761948,2.20527,2107.7,2107.1,2.71718777]
[1625262762199,2.20527,2107.7,2107.0,4.92450552]
[1625262762547,2.20527,2107.7,2107.0,2.20527]
[1625262764168,2.20527,2107.3,2107.0,2.20527]
[1625262764516,2.20527,2107.3,2107.0,4.92450968]
[1625262766221,2.20527,2107.3,2107.2,2.20527]
[1625262766320,2.20527,2107.3,2107.2,5.43497]
[1625262768677,2.20527,2107.7,2107.2,5.43497]
[1625262769829,1.0,2108.8,2107.3,5.0]
[1625262770229,1.0,2108.8,2108.4,2.20527]
[1625262770329,2.79800252,2109.3,2108.4,5.71677]
[1625262770580,2.79826453,2109.4,2108.4,5.71677]
[1625262770884,14.3488,2109.5,2108.4,5.71677]
[1625262771380,1.40531591,2109.4,2108.4,5.71677]
[1625262771884,6.16431591,2109.4,2108.4,3.5115]
[1625262772083,8.96255544,2109.4,2108.4,3.5115]
[1625262772332,2.20527,2108.5,2108.4,3.5115]
[1625262775794,2.20527,2108.5,2107.8,2.20527]
[1625262775943,5.69147,2108.5,2107.8,2.20527]
[1625262776248,5.69147,2108.5,2107.2,2.71791056]
[1625262776343,4.41054,2107.9,2107.2,2.71791056]
[1625262776494,7.81124,2107.9,2107.2,2.71791056]
[1625262776845,7.81124,2107.9,2107.0,4.92428328]
[1625262777803,7.81124,2107.9,2107.0,2.20527]
[1625262778252,4.41054,2107.1,2107.0,2.20527]
[1625262779022,2.20527,2107.1,2107.0,2.20527]
[1625262779635,4.71827,2107.1,2107.0,2.20527]
[1625262780386,6.92354,2107.1,2107.0,2.20527]
[1625262785099,2.513,2107.1,2107.0,2.20527]
[1625262785200,1.0,2107.9,2107.0,2.20527]
[1625262785298,3.4862,2108.5,2107.0,2.20527]
[1625262785401,3.79849399,2108.6,2107.0,2.20527]
[1625262785551,1.0,2108.6,2107.0,2.20527]
[1625262785953,1.40581683,2108.5,2107.0,2.20527]
[1625262786057,4.37111683,2108.5,2107.0,2.20527]
[1625262786466,2.20527,2107.4,2107.0,2.20527]
[1625262790426,2.20527,2107.1,2107.0,2.20527]
[1625262791582,2.20527,2107.4,2107.0,2.20527]
[1625262792430,4.41054,2107.4,2107.0,2.20527]
[1625262795638,1.0,2107.8,2107.0,10.49607]
[1625262795740,1.0,2108.6,2107.0,10.49607]
[1625262795989,1.0,2108.6,2107.1,17.106095]
[1625262796240,1.0,2108.6,2107.2,5.0]
[1625262796489,2.20527,2108.5,2107.9,4.97447]
[1625262802256,5.12507,2108.5,2107.9,4.97447]
[1625262802456,2.20527,2108.0,2107.9,4.97447]
[1625262802555,5.44387,2108.0,2107.9,2.20527]
[1625262812860,5.44387,2108.0,2107.7,2.20527]
[1625262813662,5.44387,2108.0,2107.0,2.71286719]
[1625262814575,2.20527,2107.6,2107.2,2.20527]
[1625262818884,2.20527,2107.6,2107.2,4.10811357]
[1625262819237,2.20527,2107.6,2107.2,2.20527]
[1625262819937,2.20527,2107.6,2107.2,4.10771438]
[1625262820088,2.20527,2107.6,2107.3,1.90248306]
[1625262826767,2.20527,2107.6,2107.5,2.20527]
[1625262827317,2.20527,2108.0,2107.5,2.20527]
[1625262828680,2.20527,2107.6,2107.5,2.20527]
[1625262829032,2.20527,2107.6,2107.2,4.10935263]
[1625262829835,2.20527,2107.6,2107.2,2.20527]
[1625262830185,2.20527,2107.6,2107.2,4.11000287]
[1625262831942,2.20527,2107.6,2107.3,1.90503337]
[1625262832290,2.20527,2107.6,2107.3,4.68033337]
[1625262832795,2.20527,2107.6,2107.5,4.10885283]
[1625262832994,2.20527,2108.0,2107.5,4.10885283]
[1625262833253,2.20527,2108.0,2107.5,4.92406315]
[1625262833496,2.20527,2108.0,2107.6,1.9028942]
[1625262834347,2.20527,2108.0,2107.9,5.03403728]
[1625262834797,2.20527,2108.0,2107.9,7.23930728]
[1625262836198,2.20527,2108.0,2107.9,6.42462419]
[1625262840115,2.96269751,2109.0,2107.9,6.42462419]
[1625262840819,2.20527,2108.0,2107.9,6.72934]
[1625262840919,4.76717,2108.0,2107.9,6.72934]
[1625262841121,4.76717,2108.0,2107.8,1.90042379]
[1625262841272,4.76717,2108.0,2107.5,1.90242477]
[1625262841723,4.76717,2108.0,2107.3,1.90316838]
[1625262842325,4.76717,2108.0,2107.2,1.90381191]
[1625262842873,4.41054,2107.3,2107.2,4.10908191]
[1625262843024,6.73284,2107.3,2107.2,4.10908191]
[1625262843888,6.73284,2107.3,2107.2,2.20527]
[1625262852552,6.73284,2107.3,2106.9,1.90461246]
[1625262852756,6.73284,2107.3,2106.6,1.90648843]
[1625262852857,7.73284,2107.3,2106.6,1.90648843]
[1625262853056,2.20527,2106.7,2106.6,1.90648843]
[1625262853157,4.95257,2106.7,2106.6,1.90648843]
[1625262854718,4.95257,2106.7,2106.4,2.72337821]
[1625262854719,4.95257,2106.7,2106.4,1.90631028]
[1625262856118,4.95257,2106.7,2106.3,4.11160882]
[1625262856921,4.95257,2106.7,2106.3,2.20527]
[1625262857022,2.20527,2106.4,2106.2,1.90675941]
[1625262857920,2.20527,2106.4,2106.1,2.20527]
[1625262858272,2.20527,2106.4,2105.9,1.90820993]
[1625262858778,2.20527,2106.4,2105.8,1.90711661]
[1625262859124,6.77224,2105.9,2105.8,1.90711661]
[1625262862851,6.77224,2105.9,2105.7,4.11119522]
[1625262863100,6.77224,2105.9,2105.7,1.90592522]
[1625262864553,6.77224,2105.9,2105.6,1.90541136]
[1625262865056,6.77224,2105.9,2105.5,1.90575138]
[1625262865462,6.77224,2105.9,2105.6,1.90558359]
[1625262866213,6.77224,2105.9,2105.7,1.90500957]
[1625262866616,6.77224,2105.9,2105.6,1.90454648]
[1625262867925,6.77224,2105.9,2105.7,1.90312628]